bitfinex-derivatives/quotes_ETHF0:USTF0_20250326
["timestamp","ask_amount","ask_price","bid_price","bid_amount"]
[1743014220732,1.4154,2008.6,2008.5,2.34834]
[1743014221036,0.99569,2008.4,2008.3,0.00746269]
[1743014221235,0.99569,2008.4,2008.3,2.35588269]
[1743014221940,2.41109,2008.4,2008.3,2.35588269]
[1743014222629,1.4154,2008.4,2008.3,2.35588269]
[1743014222934,0.6513,2008.5,2008.4,0.99569]
[1743014223239,0.99563,2008.6,2008.4,0.99569]
[1743014223240,1.354,2008.6,2008.5,0.99564]
[1743014223535,0.7122,2008.7,2008.6,0.99559]
[1743014223836,1.36146269,2008.8,2008.7,0.99554]
[1743014224135,0.00746269,2008.8,2008.7,3.10244]
[1743014225539,0.00746269,2008.8,2008.7,6.39144]
[1743014226238,1.31376269,2008.8,2008.7,47.19144]
[1743014228641,1.31376269,2008.8,2008.7,6.39144]
[1743014234644,0.00746269,2008.8,2008.7,6.39144]
[1743014235751,5.70412269,2008.8,2008.4,5.988]
[1743014236052,0.99564,2008.5,2008.4,6.98367]
[1743014236437,0.99564,2008.5,2008.4,8.34977]
[1743014236845,2.0924,2008.5,2008.4,8.34977]
[1743014237350,3.08804,2008.5,2008.4,8.34977]
[1743014238444,3.08804,2008.5,2008.4,5.988]
[1743014238649,6.29584,2008.5,2008.4,5.988]
[1743014239052,6.29584,2008.5,2008.3,4.29118269]
[1743014239053,0.99569,2008.4,2008.3,0.00746269]
[1743014239352,2.31849,2008.4,2008.3,0.00746269]
[1743014240453,2.31849,2008.4,2008.3,1.00320269]
[1743014240847,1.3228,2008.4,2008.3,1.00320269]
[1743014242257,1.3228,2008.4,2008.3,2.34140269]
[1743014244652,0.702,2008.6,2008.5,0.99564]
[1743014245154,1.3628,2008.7,2008.6,0.99559]
[1743014245544,1.3628,2008.7,2008.6,4.20339]
[1743014246143,1.3628,2008.7,2008.6,5.53219]
[1743014246750,0.69796269,2008.8,2008.7,0.99554]
[1743014246958,0.69796269,2008.8,2008.7,2.29774]
[1743014246959,2.02676269,2008.8,2008.7,2.29774]
[1743014247254,1.33626269,2008.8,2008.7,2.29774]
[1743014247559,1.33626269,2008.8,2008.7,5.58574]
[1743014247750,0.00746269,2008.8,2008.7,5.58574]
[1743014250549,1.35446269,2008.8,2008.7,5.58574]
[1743014259050,2.34995269,2008.8,2008.7,2.29774]
[1743014259251,3.05555269,2008.8,2008.7,0.99554]
[1743014259447,0.99558,2008.7,2008.6,0.99557]
[1743014259762,2.39178,2008.7,2008.6,0.99559]
[1743014260059,1.3962,2008.7,2008.6,0.99559]
[1743014260446,1.3962,2008.7,2008.6,1.69769]
[1743014260646,1.3962,2008.7,2008.6,3.07199]
[1743014262163,0.00746269,2008.8,2008.7,0.99554]
[1743014262456,1.30646269,2008.8,2008.7,2.32684]
[1743014267355,1.30646269,2008.8,2008.7,5.61384]
[1743014273465,0.99563,2008.6,2008.5,0.99561]
[1743014274159,0.99568,2008.5,2008.4,0.99566]
[1743014274359,3.10718,2008.5,2008.4,0.99566]
[1743014274664,2.1115,2008.5,2008.4,0.99566]
[1743014279556,2.1115,2008.5,2008.4,4.28266]
[1743014279761,0.00746269,2008.8,2008.7,0.99554]
[1743014279963,1.38186269,2008.8,2008.7,0.99554]
[1743014280767,1.38186269,2008.8,2008.7,2.41724]
[1743014281276,4.58966269,2008.8,2008.7,2.41724]
[1743014282372,5.58515269,2008.8,2008.7,2.41724]
[1743014282878,5.58515269,2008.8,2008.7,0.99554]
[1743014284276,0.99554,2008.7,2008.6,0.99555]
[1743014284583,3.01384,2008.7,2008.6,0.99555]
[1743014284770,0.99564,2008.6,2008.5,0.99561]
[1743014285081,0.99569,2008.5,2008.4,0.99565]
[1743014285571,2.30549,2008.5,2008.4,0.99565]
[1743014286169,5.51329,2008.5,2008.4,0.99565]
[1743014286471,0.99569,2008.4,2008.3,1.00317269]
[1743014286673,2.37639,2008.4,2008.3,1.00317269]
[1743014290574,3.02569,2008.4,2008.3,1.00317269]
[1743014296985,3.02569,2008.4,2008.3,0.00746269]
[1743014297184,3.02569,2008.4,2008.3,1.00320269]
[1743014303292,3.02569,2008.4,2008.3,1.70890269]
[1743014303681,3.02569,2008.4,2008.3,3.01260269]
[1743014304092,3.02569,2008.4,2008.3,2.30690269]
[1743014307893,3.02569,2008.4,2008.3,0.00746269]
[1743014308284,3.02569,2008.4,2008.3,1.35756269]
[1743014308484,3.02569,2008.4,2008.3,2.35330269]
[1743014308781,2.37639,2008.4,2008.3,2.35330269]
[1743014308995,1.3807,2008.4,2008.3,2.35330269]
[1743014310099,3.2078,2008.5,2008.4,0.99569]
[1743014310400,0.00746269,2008.8,2008.7,0.99554]
[1743014310592,1.00295269,2008.8,2008.7,0.99554]
[1743014310893,1.00295269,2008.8,2008.7,2.33594]
[1743014311392,0.99554,2008.7,2008.6,0.99558]
[1743014311599,0.99564,2008.6,2008.5,2.33602]
[1743014312287,2.34264,2008.6,2008.5,2.33602]
[1743014315794,1.347,2008.6,2008.5,2.33602]
[1743014316586,2.34259,2008.6,2008.5,2.33602]
[1743014317594,1.347,2008.6,2008.5,2.33602]
[1743014317791,2.34259,2008.6,2008.5,2.33602]
[1743014318103,1.347,2008.6,2008.5,2.33602]
[1743014318398,2.34259,2008.6,2008.5,2.33602]
[1743014318594,1.347,2008.6,2008.5,2.33602]
[1743014318899,5.54408,2008.7,2008.6,0.99559]
[1743014319100,6.21778,2008.7,2008.6,2.29489]
[1743014319395,3.2078,2008.7,2008.6,2.29489]
[1743014319900,3.2078,2008.7,2008.6,2.94449]
[1743014320403,0.00746269,2008.8,2008.7,0.99554]
[1743014320702,0.00746269,2008.8,2008.7,2.39284]
[1743014321101,1.41396269,2008.8,2008.7,2.39284]
[1743014321991,2.40945269,2008.8,2008.7,2.39284]
[1743014322191,1.41396269,2008.8,2008.7,2.39284]
[1743014325501,2.40945269,2008.8,2008.7,2.39284]
[1743014325800,1.41396269,2008.8,2008.7,2.39284]
[1743014329501,2.40945269,2008.8,2008.7,2.39284]
[1743014334204,1.41396269,2008.8,2008.7,2.39284]
[1743014334408,2.40945269,2008.8,2008.7,2.39284]
[1743014339010,0.00746269,2008.8,2008.7,2.39284]
[1743014346420,1.00295269,2008.8,2008.7,2.39284]
[1743014347408,2.42535269,2008.8,2008.7,2.39284]
[1743014347709,2.42535269,2008.8,2008.7,1.3973]
[1743014347905,2.42535269,2008.8,2008.7,2.39284]
[1743014349317,1.42986269,2008.8,2008.7,2.39284]
[1743014349714,0.00746269,2008.8,2008.7,2.39284]
[1743014350219,1.38856269,2008.8,2008.7,2.39284]
[1743014351612,2.38405269,2008.8,2008.7,2.39284]
[1743014352019,1.38856269,2008.8,2008.7,2.39284]
[1743014354020,0.00746269,2008.8,2008.7,2.39284]
[1743014355511,1.32416269,2008.8,2008.7,2.39284]
[1743014356419,2.31965269,2008.8,2008.7,2.39284]
[1743014357227,2.31965269,2008.8,2008.7,1.3973]
[1743014357423,2.31965269,2008.8,2008.7,2.39284]
[1743014357622,0.9956,2008.7,2008.6,0.99557]
[1743014357822,3.7366,2008.7,2008.6,0.99557]
[1743014358221,6.9444,2008.7,2008.6,0.99557]
[1743014358426,0.99559,2008.6,2008.5,2.4005]
[1743014358621,2.42449,2008.6,2008.5,2.4005]
[1743014358820,1.4289,2008.6,2008.5,2.4005]
[1743014361123,2.42449,2008.6,2008.5,2.4005]
[1743014361519,1.4289,2008.6,2008.5,2.4005]
[1743014361923,2.42449,2008.6,2008.5,1.4049]
[1743014362124,2.42449,2008.6,2008.3,0.00746269]
[1743014362125,0.99569,2008.4,2008.3,0.00746269]
[1743014362929,2.35149,2008.4,2008.3,0.00746269]
[1743014363129,5.55929,2008.4,2008.3,0.00746269]
[1743014363827,6.92519,2008.4,2008.3,0.00746269]
[1743014375431,3.2078,2008.7,2008.6,0.99555]
[1743014375629,5.5406,2008.7,2008.6,0.99555]
[1743014376135,4.2034,2008.7,2008.6,0.99555]
[1743014376538,4.2034,2008.7,2008.6,1.68795]
[1743014377241,5.5406,2008.7,2008.6,1.68795]
[1743014388339,0.00746269,2008.8,2008.7,0.99554]
[1743014388544,1.00295269,2008.8,2008.7,3.00214]
[1743014389362,2.41245269,2008.8,2008.7,3.00214]
[1743014389653,2.41245269,2008.8,2008.7,1.3137]
[1743014389844,2.41245269,2008.8,2008.7,2.30924]
[1743014390649,1.41696269,2008.8,2008.7,2.30924]
[1743014390852,2.41245269,2008.8,2008.7,2.30924]
[1743014395043,0.99564,2008.5,2008.4,3.2078]
[1743014395350,0.99569,2008.4,2008.3,0.00746269]
[1743014395556,1.67169,2008.4,2008.3,1.33686269]
[1743014395953,1.67169,2008.4,2008.3,2.33260269]
[1743014396150,3.01079,2008.4,2008.3,2.33260269]
[1743014396348,6.21859,2008.4,2008.3,2.33260269]
[1743014399359,6.21859,2008.4,2008.3,1.33686269]
[1743014399560,6.21859,2008.4,2008.3,2.33260269]
[1743014400252,5.2229,2008.4,2008.3,2.33260269]
[1743014400455,4.20337,2008.7,2008.3,1.33686269]
[1743014400764,4.20337,2008.7,2008.6,0.99559]
[1743014400765,2.35497,2008.7,2008.6,0.99559]
[1743014401761,0.99557,2008.7,2008.6,0.99559]
[1743014402158,0.99557,2008.7,2008.6,2.31219]
[1743014402760,2.37407,2008.7,2008.6,2.31219]
[1743014403863,1.3785,2008.7,2008.6,2.31219]
[1743014404163,2.37404,2008.7,2008.6,2.31219]
[1743014409856,0.65916269,2008.8,2008.7,0.99554]
[1743014410056,0.00746269,2008.8,2008.7,2.40334]
[1743014411269,0.00746269,2008.8,2008.7,43.20334]
[1743014411462,0.00746269,2008.8,2008.7,2.40334]
[1743014412263,0.00746269,2008.8,2008.7,3.09884]
[1743014412965,1.00295269,2008.8,2008.7,3.09884]
[1743014415074,1.00295269,2008.8,2008.5,0.8]
[1743014415075,0.99559,2008.6,2008.5,0.8]
[1743014415256,4.20339,2008.6,2008.5,0.8]
[1743014415872,6.32509,2008.6,2008.5,1.79564]
[1743014416363,6.32509,2008.6,2008.5,0.8]
[1743014418462,6.32509,2008.6,2008.5,2.1726]
[1743014423478,6.32509,2008.6,2008.5,0.8]
[1743014423779,5.3295,2008.6,2008.5,0.8]
[1743014425678,6.32509,2008.6,2008.5,0.8]
[1743014427780,8.82509,2008.6,2008.5,0.8]
[1743014427977,0.99569,2008.4,2008.3,0.00746269]
[1743014428279,0.99589,2008.0,2007.9,1.312]
[1743014428475,0.99589,2008.0,2007.9,2.30794]
[1743014428476,4.20369,2008.0,2007.9,2.30794]
[1743014429076,4.86569,2008.0,2007.9,2.30794]
[1743014431086,2.30558,2008.1,2008.0,0.99589]
[1743014431275,2.30558,2008.1,2008.0,2.41279]
[1743014431679,0.99583,2008.2,2008.1,0.99579]
[1743014431970,5.9565,2008.3,2008.1,3.12299]
[1743014432172,6.95228,2008.3,2008.2,0.99579]
[1743014432383,6.27278,2008.3,2008.2,2.36109]
[1743014435579,4.20358,2008.3,2008.2,2.36109]
[1743014435780,0.99574,2008.3,2008.2,2.36109]
[1743014436570,2.31904,2008.3,2008.2,2.36109]
[1743014437672,1.67523,2008.4,2008.3,0.99574]
[1743014437985,2.31903,2008.4,2008.3,2.38744]
[1743014439189,1.3233,2008.4,2008.3,2.38744]
[1743014439383,2.31899,2008.4,2008.3,0.99574]
[1743014440388,2.31899,2008.4,2008.3,2.29584]
[1743014451188,1.3233,2008.4,2008.3,2.29584]
[1743014451384,0.6552,2008.5,2008.4,0.99569]
[1743014451595,0.00746269,2008.8,2008.5,2.48908]
[1743014451795,0.00746269,2008.8,2008.7,0.99554]
[1743014452099,0.00746269,2008.8,2008.7,43.13864]
[1743014452289,0.00746269,2008.8,2008.7,2.33864]
[1743014452687,0.00746269,2008.8,2008.7,43.82384]
[1743014453094,0.00746269,2008.8,2008.7,44.2237343]
[1743014453285,0.00746269,2008.8,2008.7,43.82384]
[1743014454595,0.00746269,2008.8,2008.7,3.02384]
[1743014457094,1.32236269,2008.8,2008.3,3.278]
[1743014457300,0.99569,2008.4,2008.3,0.99573]
[1743014457494,0.99569,2008.4,2008.3,2.41733]
[1743014458096,2.31059,2008.4,2008.3,2.41733]
[1743014458401,2.31059,2008.4,2008.3,1.4216]
[1743014458794,2.31059,2008.4,2008.3,2.41734]
[1743014459495,2.31059,2008.4,2008.3,1.4216]
[1743014459699,0.99579,2008.2,2008.1,3.278]
[1743014459897,2.41508,2008.3,2008.2,0.99579]
[1743014460101,0.99579,2008.2,2008.1,4.27382]
[1743014460998,0.99579,2008.2,2008.1,5.63802]
[1743014461493,2.41508,2008.3,2008.2,0.99579]
[1743014461698,2.41508,2008.3,2008.2,2.35999]
[1743014462295,1.4193,2008.3,2008.2,2.35999]
[1743014462495,2.41504,2008.3,2008.2,2.35999]
[1743014463897,1.4193,2008.3,2008.2,2.35999]
[1743014465302,0.99589,2008.1,2008.0,0.99587]
[1743014465507,7.11657,2008.3,2007.9,2.40791]
[1743014465508,0.99589,2008.0,2007.9,2.40791]
[1743014465706,2.35539,2008.0,2007.9,2.40791]
[1743014467600,1.3595,2008.0,2007.9,2.40791]
[1743014468003,3.2078,2008.6,2008.2,0.99579]
[1743014468203,2.0042,2008.5,2008.4,0.99566]
[1743014468505,0.99569,2008.4,2008.3,1.412]
[1743014468704,0.99579,2008.2,2008.1,0.9958]
[1743014468910,0.99579,2008.2,2008.1,2.3616]
[1743014469111,4.20359,2008.2,2008.1,1.3658]
[1743014469409,0.99584,2008.1,2008.0,0.99585]
[1743014469610,3.04524,2008.1,2008.0,2.36165]
[1743014469906,3.04524,2008.1,2008.0,43.16165]
[1743014470211,3.04524,2008.1,2008.0,2.36165]
[1743014471106,0.99594,2008.0,2007.9,0.9959]
[1743014471299,2.33014,2008.0,2007.9,0.9959]
[1743014471504,0.99594,2007.9,2007.8,2.36175]
[1743014471807,1.71108,2008.1,2008.0,0.99589]
[1743014472003,2.1133,2008.1,2008.0,0.99589]
[1743014472207,5.3124,2008.2,2008.1,0.99584]
[1743014472408,0.6741,2008.3,2008.1,0.99584]
[1743014472409,1.3981,2008.4,2008.3,0.99574]
[1743014473207,2.39379,2008.4,2008.3,0.99574]
[1743014473416,1.3981,2008.4,2008.3,0.99574]
[1743014473604,2.39379,2008.4,2008.3,0.99574]
[1743014475215,1.3981,2008.4,2008.3,0.99574]
[1743014475411,2.39379,2008.4,2008.3,0.99574]
[1743014476916,1.3981,2008.4,2008.3,0.99574]
[1743014477418,1.3981,2008.4,2008.3,2.42194]
[1743014478116,2.39379,2008.4,2008.3,2.42194]
[1743014478315,1.3981,2008.4,2008.3,2.42194]
[1743014479419,2.39379,2008.4,2008.3,2.42194]
[1743014481211,1.3981,2008.4,2008.3,2.42194]
[1743014482019,1.3981,2008.4,2008.3,3.07284]
[1743014482519,2.37621,2008.6,2008.5,0.99564]
[1743014482717,2.6749,2008.6,2008.5,0.99564]
[1743014482922,3.88516269,2008.8,2008.7,0.99554]
[1743014483214,0.00746269,2008.8,2008.7,0.99554]
[1743014483919,0.00746269,2008.8,2008.7,2.33054]
[1743014484511,2.42125269,2008.8,2008.7,2.33054]
[1743014484912,5.62905269,2008.8,2008.7,1.335]
[1743014485209,0.99569,2008.5,2008.4,0.99568]
[1743014485414,0.99569,2008.5,2008.3,0.99571]
[1743014485415,0.99574,2008.4,2008.3,0.99571]
[1743014485616,2.31824,2008.4,2008.3,0.99571]
[1743014486412,0.99574,2008.3,2008.2,0.99574]
[1743014486615,2.41404,2008.3,2008.2,1.335]
[1743014487008,0.99594,2008.0,2007.9,0.99591]
[1743014487412,0.99594,2008.0,2007.9,0.99594]
[1743014487619,1.64884,2008.0,2007.9,0.99594]
[1743014487922,2.34974,2008.0,2007.9,0.99594]
[1743014488116,1.3538,2008.0,2007.9,0.99594]
[1743014488418,3.76259,2008.0,2007.9,2.29704]
[1743014489625,2.7667,2008.0,2007.9,2.29704]
[1743014489815,3.76259,2008.0,2007.9,2.29704]
[1743014490923,0.99594,2007.9,2007.8,0.99597]
[1743014491114,2.32994,2007.9,2007.8,0.99597]
[1743014491314,1.334,2007.9,2007.8,0.99597]
[1743014491520,2.32994,2007.9,2007.8,0.99597]
[1743014492424,2.32994,2007.9,2007.8,2.40297]
[1743014492625,2.32994,2007.9,2007.8,1.407]
[1743014492821,0.99599,2007.8,2007.7,0.00746269]
[1743014493026,5.63249,2007.8,2007.7,0.00746269]
[1743014493428,2.49011,2007.7,2007.2,0.99626]
[1743014493620,4.20403,2007.4,2007.3,0.99624]
[1743014494020,0.99624,2007.3,2007.2,0.99624]
[1743014494221,3.2078,2007.4,2007.1,3.2078]
[1743014494835,2.42497,2007.3,2007.2,0.99629]
[1743014495034,2.42497,2007.3,2007.2,2.42429]
[1743014495830,2.42497,2007.3,2007.2,1.428]
[1743014496530,3.13497,2007.3,2007.2,1.428]
[1743014496726,4.62931,2007.3,2006.8,53.4138]
[1743014496933,0.99644,2006.9,2006.8,4.20429]
[1743014497631,0.99644,2006.9,2006.8,0.99649]
[1743014497819,1.3025,2007.0,2006.7,1.3874]
[1743014498023,0.99647,2006.9,2006.8,0.99648]
[1743014498224,1.70647,2006.9,2006.8,0.99648]
[1743014498429,0.71,2006.9,2006.7,2.3839]
[1743014498733,0.71,2006.9,2006.8,0.99649]
[1743014499032,1.70644,2006.9,2006.8,0.99649]
[1743014499530,0.71,2006.9,2006.8,0.99649]
[1743014499727,1.3025,2007.0,2006.9,0.99644]
[1743014500128,2.29889,2007.0,2006.9,0.99644]
[1743014500324,0.99647,2006.9,2006.8,0.99647]
[1743014500529,0.9965,2006.8,2006.7,0.9965]
[1743014501026,0.99649,2006.8,2006.7,0.9965]
[1743014501235,1.374,2006.8,2006.7,0.9965]
[1743014501631,2.7664,2006.8,2006.7,0.9965]
[1743014504537,2.7664,2006.8,2006.6,0.6865]
[1743014504741,1.3134,2006.7,2006.6,0.99659]
[1743014505038,2.30994,2006.7,2006.6,0.99659]
[1743014505431,2.30994,2006.7,2006.5,3.2078]
[1743014505432,0.99659,2006.6,2006.5,4.20441]
[1743014505639,2.31819,2006.6,2006.5,4.20441]
[1743014506338,1.3216,2006.6,2006.5,4.20441]
[1743014511838,2.31819,2006.6,2006.5,3.2078]
[1743014512035,0.99668,2006.5,2006.4,0.99665]
[1743014512235,3.12478,2006.5,2006.4,0.99665]
[1743014513139,0.99656,2006.7,2006.6,0.99659]
[1743014513342,1.64676,2006.7,2006.6,0.99659]
[1743014514037,0.99664,2006.6,2006.5,0.99661]
[1743014514544,2.29394,2006.6,2006.5,0.99661]
[1743014514933,2.29394,2006.6,2006.3,3.14379]
[1743014514934,0.99665,2006.5,2006.4,0.99664]
[1743014515131,2.29395,2006.5,2006.4,0.99664]
[1743014516042,1.2973,2006.5,2006.4,0.99664]
[1743014517732,2.29394,2006.5,2006.4,0.99664]
[1743014517940,1.2973,2006.5,2006.4,0.99664]
[1743014518343,0.99662,2006.6,2006.5,0.99664]
[1743014518538,2.34252,2006.6,2006.5,0.99664]
[1743014522745,0.99664,2006.5,2006.4,1.3516]
[1743014522946,5.54444,2006.5,2006.4,2.34829]
[1743014524153,5.54444,2006.5,2006.4,1.3516]
[1743014524358,5.54444,2006.5,2006.4,2.34829]
[1743014525264,0.6502,2006.7,2006.5,0.9966]
[1743014525447,2.33373,2006.6,2006.5,0.9966]
[1743014526045,1.3371,2006.6,2006.5,0.9966]
[1743014526855,2.33369,2006.6,2006.5,0.9966]
[1743014528952,1.3371,2006.6,2006.5,0.9966]
[1743014529251,2.33369,2006.6,2006.5,0.9966]
[1743014529660,1.3371,2006.6,2006.5,0.9966]
[1743014529952,5.1985,2007.1,2007.0,0.99639]
[1743014530157,0.99642,2007.0,2006.9,0.9964]
[1743014530360,2.31162,2007.0,2006.9,0.9964]
[1743014530859,1.3152,2007.0,2006.9,0.9964]
[1743014531057,2.31159,2007.0,2006.9,0.9964]
[1743014531653,1.3152,2007.0,2006.9,0.9964]
[1743014532654,0.6755,2007.1,2007.0,0.99639]
[1743014532854,1.3322,2007.2,2007.1,0.99634]
[1743014533060,0.7166,2007.3,2007.2,0.99629]
[1743014533257,3.04504,2007.3,2007.2,0.99629]
[1743014535057,2.0488,2007.3,2007.2,0.99629]
[1743014535259,3.04504,2007.3,2007.2,0.99629]
[1743014535457,2.0488,2007.3,2007.2,0.99629]
[1743014536456,0.7166,2007.3,2007.2,0.99629]
[1743014536758,5.2532,2007.4,2007.3,0.99624]
[1743014537652,6.24939,2007.4,2007.3,0.99624]
[1743014538958,5.2532,2007.4,2007.3,0.99624]
[1743014539160,1.3525,2007.4,2007.3,0.99624]
[1743014539362,0.00746269,2007.5,2007.4,0.99619]
[1743014539960,0.00746269,2007.5,2007.4,1.67489]
[1743014541267,0.00746269,2007.5,2007.4,3.06629]
[1743014547072,0.00746269,2007.5,2007.4,3.25629]
[1743014547273,0.00746269,2007.5,2007.4,3.07629]
[1743014547471,0.00746269,2007.5,2007.4,3.06629]
[1743014547973,0.00746269,2007.5,2007.4,3.24629]
[1743014548272,0.00746269,2007.5,2007.4,3.06629]
[1743014553782,0.00746269,2007.5,2007.4,2.38759]
[1743014553986,0.68326269,2007.5,2007.4,2.38759]
[1743014554281,2.00826269,2007.5,2007.4,2.38759]
[1743014554481,3.00440269,2007.5,2007.4,2.38759]
[1743014554674,2.00826269,2007.5,2007.4,2.38759]
[1743014557177,0.00746269,2007.5,2007.4,2.38759]
[1743014557477,0.00746269,2007.5,2007.4,3.35759]
[1743014557679,0.00746269,2007.5,2007.4,3.24759]
[1743014557881,0.00746269,2007.5,2007.4,2.38759]
[1743014558184,0.00746269,2007.5,2007.4,3.52759]
[1743014558580,0.00746269,2007.5,2007.4,2.38759]
[1743014559171,1.38036269,2007.5,2007.4,2.38759]
[1743014561781,0.00746269,2007.5,2007.4,2.38759]
[1743014561975,0.00746269,2007.5,2007.4,2.52759]
[1743014562172,2.0136,2007.7,2007.6,0.99609]
[1743014562376,2.0136,2007.7,2007.6,7.47889]
[1743014562874,2.0136,2007.7,2007.6,8.88939]
[1743014564177,2.0136,2007.7,2007.6,8.91939]
[1743014564484,2.0136,2007.7,2007.6,8.88939]
[1743014569391,2.0136,2007.7,2007.6,10.21939]
[1743014569587,2.0136,2007.7,2007.6,10.89529]
[1743014569891,2.0136,2007.7,2007.6,9.56529]
[1743014570477,2.0136,2007.7,2007.6,8.88939]
[1743014570992,2.0136,2007.7,2007.6,4.20389]
[1743014571290,2.0136,2007.7,2007.6,0.99609]
[1743014571590,3.4349,2007.7,2007.6,0.99609]
[1743014575395,3.4349,2007.7,2007.6,2.34799]
[1743014576587,3.4349,2007.7,2007.6,0.99609]
[1743014577295,3.4349,2007.7,2007.5,4.6259]
[1743014577296,0.99609,2007.6,2007.5,0.99611]
[1743014577587,2.0449,2007.6,2007.4,3.28146269]
[1743014577804,0.6757,2007.5,2007.4,4.27765269]
[1743014578091,2.0186,2007.5,2007.4,2.35555269]
[1743014579994,2.0186,2007.5,2007.4,1.00365269]
[1743014580585,2.0186,2007.5,2007.4,2.33705269]
[1743014586300,2.0186,2007.5,2007.4,2.99245269]
[1743014586802,2.7033,2007.7,2007.6,0.99609]
[1743014586994,2.7033,2007.7,2007.6,7.47789]
[1743014587394,2.0136,2007.7,2007.6,7.47789]
[1743014587801,2.0136,2007.7,2007.6,8.78789]
[1743014588105,2.0136,2007.7,2007.6,7.47789]
[1743014594095,2.0136,2007.7,2007.6,4.20389]
[1743014594294,2.6761,2007.7,2007.6,4.26909]
[1743014594906,4.0546,2007.7,2007.6,4.26909]
[1743014595608,4.0546,2007.7,2007.6,0.99609]
[1743014596202,4.0546,2007.7,2007.6,2.29849]
[1743014596608,4.0546,2007.7,2007.5,3.273]
[1743014596609,5.05064,2007.7,2007.5,3.273]
[1743014596811,2.29539,2007.6,2007.4,0.00746269]
[1743014597003,1.9931,2007.5,2007.4,1.00365269]
[1743014597402,1.9931,2007.5,2007.4,2.40305269]
[1743014603406,2.98924,2007.5,2007.4,1.00365269]
[1743014603614,2.98924,2007.5,2007.4,0.00746269]
[1743014603804,6.19704,2007.5,2007.4,0.00746269]
[1743014605717,2.49071,2007.3,2007.0,0.99634]
[1743014605913,0.99648,2006.9,2006.8,0.99642]
[1743014606810,2.40778,2006.9,2006.8,0.99642]
[1743014607618,2.40774,2006.9,2006.8,0.99642]
[1743014608118,1.4113,2006.9,2006.8,0.99642]
[1743014608314,2.40774,2006.9,2006.8,0.99642]
[1743014608922,3.12274,2006.9,2006.8,0.99642]
[1743014612014,0.99649,2006.8,2006.7,2.4144]
[1743014612212,0.99654,2006.7,2006.6,41.79659]
[1743014612417,1.71084,2006.7,2006.6,41.79659]
[1743014612611,1.71084,2006.7,2006.6,43.13049]
[1743014613216,1.71084,2006.7,2006.6,2.33049]
[1743014613419,3.05474,2006.7,2006.6,2.33049]
[1743014614226,3.05474,2006.7,2006.6,1.3339]
[1743014614527,0.99659,2006.6,2006.5,0.9966]
[1743014614719,2.37129,2006.6,2006.5,0.9966]
[1743014614919,2.37129,2006.6,2006.4,8.83735]
[1743014615121,0.99659,2006.6,2006.5,2.35654]
[1743014615624,0.99659,2006.6,2006.5,1.3599]
[1743014616131,0.99666,2006.5,2006.3,92.01571]
[1743014616425,0.99666,2006.5,2006.4,1.3599]
[1743014617217,0.99666,2006.5,2006.4,2.35659]
[1743014617918,0.99661,2006.6,2006.4,2.35654]
[1743014618123,0.99661,2006.6,2006.5,2.39734]
[1743014618326,0.99661,2006.6,2006.5,1.4007]
[1743014618518,0.99661,2006.6,2006.5,2.39734]
[1743014619230,0.00746269,2006.9,2006.5,1.4007]
[1743014619526,1.00392269,2006.9,2006.8,0.99649]
[1743014619917,1.00392269,2006.9,2006.7,0.99653]
[1743014620122,1.00392269,2006.9,2006.7,2.39723]
[1743014620516,0.00746269,2006.9,2006.5,0.6522]
[1743014620722,0.00746269,2006.9,2006.7,0.99652]
[1743014620926,0.99649,2006.8,2006.7,0.99652]
[1743014621313,0.99649,2006.8,2006.7,0.99654]
[1743014621527,0.99649,2006.8,2006.6,2.39724]
[1743014621729,0.99649,2006.8,2006.7,0.99654]
[1743014621928,0.99649,2006.8,2006.7,1.4273]
[1743014622623,0.99659,2006.6,2006.5,0.9966]
[1743014622834,0.99659,2006.6,2006.5,2.4239]
[1743014623926,0.99659,2006.6,2006.5,2.42394]
[1743014624223,0.99659,2006.6,2006.5,1.4273]
[1743014629026,2.29139,2006.6,2006.5,1.4273]
[1743014630534,2.29139,2006.6,2006.5,2.42394]
[1743014631030,2.29139,2006.6,2006.5,1.4273]
[1743014632029,2.29139,2006.6,2006.5,2.42394]
[1743014632631,0.99659,2006.6,2006.5,2.42394]
[1743014635126,2.31229,2006.6,2006.5,2.42394]
[1743014635527,0.99659,2006.6,2006.5,2.42394]
[1743014636537,0.99658,2006.7,2006.6,0.99654]
[1743014636734,0.99658,2006.7,2006.6,2.38584]
[1743014637234,2.30828,2006.7,2006.6,2.38584]
[1743014639629,2.30828,2006.7,2006.6,1.3893]
[1743014639829,2.30828,2006.7,2006.6,2.38589]
[1743014640831,2.30828,2006.7,2005.9,55.23055]
[1743014640832,1.3117,2006.7,2006.1,6.4808]
[1743014641137,0.99678,2006.3,2006.2,0.99675]
[1743014642234,3.10232,2006.4,2006.3,0.99674]
[1743014644850,0.99674,2006.3,2006.2,2.32134]
[1743014645146,3.10232,2006.4,2006.3,0.99674]
[1743014645365,3.10232,2006.4,2006.3,2.42094]
[1743014646344,3.10232,2006.4,2006.3,1.4242]
[1743014647643,0.99693,2006.0,2005.9,0.9969]
[1743014647842,0.99687,2006.1,2006.0,0.99684]
[1743014648242,4.20462,2006.2,2006.1,0.99683]
[1743014648546,0.99688,2006.1,2006.0,0.99686]
[1743014649045,0.99691,2006.0,2005.9,0.9969]
[1743014649343,0.7095,2006.0,2005.9,2.2911]
[1743014649643,1.70638,2006.0,2005.9,2.2911]
[1743014649845,2.1202,2006.0,2005.9,2.2911]
[1743014651246,3.11708,2006.0,2005.9,1.2942]
[1743014651545,3.11708,2006.0,2005.9,2.29113]
[1743014652343,3.11708,2006.0,2005.9,1.2942]